fUST/lending_fUST_20250205
["ID","MTS","AMOUNT","RATE_DAILY","PERIOD"]
[351731180,1738770640854,-509.39038919,0.00015257,2]
[351731181,1738770640864,-500.0,0.00015257,2]
[351731183,1738770640873,-500.0,0.00015257,2]
[351731184,1738770640883,-500.0,0.00015257,2]
[351731185,1738770640893,-508.79528538,0.00015257,2]
[351731186,1738770640903,-382.63498747,0.00015257,2]
[351731187,1738770640912,-500.0,0.00015257,2]
[351731189,1738770640922,-500.0,0.00015257,2]
[351731191,1738770640931,-500.0,0.00015257,2]
[351731193,1738770640940,-500.0,0.00015257,2]
[351731195,1738770640950,-500.0,0.00015257,2]
[351731196,1738770640959,-500.0,0.00015257,2]
[351731197,1738770640969,-500.0,0.00015257,2]
[351731198,1738770640979,-790.94,0.00015257,2]
[351731199,1738770640988,-500.0,0.00015257,2]
[351731200,1738770640999,-500.0,0.00015257,2]
[351731201,1738770641012,-500.0,0.00015257,2]
[351731202,1738770641022,-502.32749798,0.00015257,2]
[351731203,1738770641031,-500.0,0.00015257,2]
[351731204,1738770641042,-500.0,0.00015257,2]
[351731205,1738770641051,-500.0,0.00015257,2]
[351731206,1738770641061,-500.0,0.00015257,2]
[351731207,1738770641070,-500.0,0.00015257,2]
[351731208,1738770641080,-500.0,0.00015257,2]
[351731209,1738770641090,-500.0,0.00015257,2]
[351731210,1738770641103,-500.0,0.00015257,2]
[351731211,1738770641113,-201.9818426,0.00015257,2]
[351731212,1738770641122,-232.44990168,0.00015257,2]
[351731213,1738770641131,-500.0,0.00015257,2]
[351731214,1738770641141,-500.0,0.00015257,2]
[351731215,1738770641150,-688.93,0.00015257,2]
[351731216,1738770641160,-501.71599731,0.00015257,2]
[351731217,1738770641170,-502.90025122,0.00015257,2]
[351731218,1738770641180,-642.23,0.00015257,2]
[351731219,1738770641189,-506.24548495,0.00015257,2]
[351731220,1738770641198,-328.23527834,0.00015257,2]
[351731221,1738770641207,-502.3482059,0.00015257,2]
[351731222,1738770641217,-500.0,0.00015257,2]
[351731223,1738770641226,-500.0,0.00015257,2]
[351731224,1738770641235,-500.0,0.00015257,2]
[351731225,1738770641245,-500.0,0.00015257,2]
[351731226,1738770641255,-500.0,0.00015257,2]
[351731227,1738770641265,-320.62455143,0.00015257,2]
[351731228,1738770641274,-500.0,0.00015257,2]
[351731229,1738770641283,-500.0,0.00015257,2]
[351731230,1738770641293,-527.76,0.00015257,2]
[351731231,1738770641302,-1327.66,0.00015257,2]
[351731232,1738770641311,-500.0,0.00015257,2]
[351731233,1738770641320,-500.0,0.00015257,2]
[351731234,1738770641330,-504.98740706,0.00015257,2]
[351731235,1738770641340,-500.0,0.00015257,2]
[351731236,1738770641351,-506.00447112,0.00015257,2]
[351731237,1738770641361,-500.0,0.00015257,2]
[351731238,1738770641371,-502.19630505,0.00015257,2]
[351731239,1738770641380,-500.0,0.00015257,2]
[351731240,1738770641390,-500.4711566,0.00015257,2]
[351731241,1738770641399,-500.0,0.00015257,2]
[351731242,1738770641408,-622.5,0.00015257,2]
[351731243,1738770641417,-501.15220094,0.00015257,2]
[351731244,1738770641427,-500.0,0.00015257,2]
[351731245,1738770641437,-505.38848824,0.00015257,2]
[351731246,1738770641446,-500.30604606,0.00015257,2]
[351731247,1738770641455,-500.0,0.00015257,2]
[351731248,1738770641464,-500.0,0.00015257,2]
[351731249,1738770641473,-500.0,0.00015257,2]
[351731250,1738770641482,-500.0,0.00015257,2]
[351731251,1738770641492,-500.0,0.00015257,2]
[351731252,1738770641501,-500.0,0.00015257,2]
[351731253,1738770641510,-500.0,0.00015257,2]
[351731254,1738770641519,-500.0,0.00015257,2]
[351731255,1738770641529,-500.0,0.00015257,2]
[351731256,1738770641538,-500.0,0.00015257,2]
[351731257,1738770641547,-500.0,0.00015257,2]
[351731258,1738770641557,-830.37,0.00015257,2]
[351731259,1738770641566,-500.0,0.00015257,2]
[351731260,1738770641575,-500.0,0.00015257,2]
[351731261,1738770641585,-500.0,0.00015257,2]
[351731262,1738770641596,-500.0,0.00015257,2]
[351731263,1738770641605,-501.57824832,0.00015257,2]
[351731264,1738770641614,-500.98027932,0.00015257,2]
[351731265,1738770641623,-500.0,0.00015257,2]
[351731266,1738770641632,-500.0,0.00015257,2]
[351731267,1738770641641,-500.0,0.00015257,2]
[351731268,1738770641651,-500.0,0.00015257,2]
[351731269,1738770641660,-769.45,0.00015257,2]
[351731270,1738770641669,-500.0,0.00015257,2]
[351731271,1738770641679,-500.0,0.00015257,2]
[351731272,1738770641688,-500.0,0.00015257,2]
[351731273,1738770641698,-500.0,0.00015257,2]
[351731274,1738770641707,-500.0,0.00015257,2]
[351731275,1738770641717,-500.0,0.00015257,2]
[351731276,1738770641726,-485.95503907,0.00015257,2]
[351731277,1738770641736,-500.0,0.00015257,2]
[351731278,1738770641745,-500.0,0.00015257,2]
[351731279,1738770641754,-500.0,0.00015257,2]
[351731280,1738770641764,-500.0,0.00015257,2]
[351731281,1738770641773,-500.0,0.00015257,2]
[351731282,1738770641783,-500.0,0.00015257,2]
[351731283,1738770641792,-500.0,0.00015257,2]
[351731284,1738770641802,-500.0,0.00015257,2]
[351731285,1738770641811,-500.0,0.00015257,2]
[351731286,1738770641821,-500.0,0.00015257,2]
[351731287,1738770641830,-500.0,0.00015257,2]
[351731288,1738770641839,-513.09,0.00015257,2]
[351731289,1738770641851,-1185.52,0.00015257,2]
[351731290,1738770641860,-500.0,0.00015257,2]
[351731291,1738770641870,-506.57414621,0.00015257,2]
[351731292,1738770641879,-500.0,0.00015257,2]
[351731293,1738770641888,-500.0,0.00015257,2]
[351731294,1738770641899,-499.63457526,0.00015257,2]
[351731295,1738770641908,-500.0,0.00015257,2]
[351731296,1738770641917,-500.0,0.00015257,2]
[351731297,1738770641927,-500.0,0.00015257,2]
[351731298,1738770641936,-500.0,0.00015257,2]
[351731299,1738770641946,-223.61797032,0.00015257,2]
[351731300,1738770641955,-519.31,0.00015257,2]
[351731301,1738770641965,-500.0,0.00015257,2]
[351731302,1738770641974,-500.0,0.00015257,2]
[351731303,1738770641983,-500.0,0.00015257,2]
[351731304,1738770641993,-500.0,0.00015257,2]
[351731305,1738770642005,-500.0,0.00015257,2]
[351731306,1738770642015,-1229.41,0.00015257,2]
[351731307,1738770642024,-500.0,0.00015257,2]
[351731308,1738770642034,-493.30802377,0.00015257,2]
[351731309,1738770642044,-500.0,0.00015257,2]
[351731310,1738770642053,-500.0,0.00015257,2]
[351731311,1738770642062,-503.38929507,0.00015257,2]
[351731312,1738770642073,-500.0,0.00015257,2]
[351731313,1738770642084,-840.17,0.00015257,2]
[351731314,1738770642093,-500.0,0.00015257,2]
[351731315,1738770642104,-500.0,0.00015257,2]
[351731316,1738770642243,-500.0,0.00015257,2]
[351731317,1738770642253,-629.95,0.00015257,2]
[351731318,1738770642263,-520.63,0.00015257,2]
[351731319,1738770642272,-550.23,0.00015257,2]
[351731320,1738770642282,-738.45,0.00015257,2]
[351731321,1738770642291,-500.0,0.00015257,2]
[351731322,1738770642300,-779.37,0.00015257,2]
[351731323,1738770642310,-500.0,0.00015257,2]
[351731324,1738770642321,-520.44,0.00015257,2]
[351731325,1738770642331,-820.34,0.00015257,2]
[351731326,1738770642340,-500.0,0.00015257,2]
[351731327,1738770642351,-500.0,0.00015257,2]
[351731328,1738770642360,-577.14,0.00015257,2]
[351731329,1738770642370,-500.0,0.00015257,2]
[351731330,1738770642384,-500.0,0.00015257,2]
[351731331,1738770642396,-500.0,0.00015257,2]
[351731332,1738770642406,-924.89,0.00015257,2]
[351731333,1738770642415,-500.0,0.00015257,2]
[351731334,1738770642426,-500.0,0.00015257,2]
[351731335,1738770642436,-500.0,0.00015257,2]
[351731336,1738770642446,-1756.32,0.00015257,2]
[351731337,1738770642455,-500.0,0.00015257,2]
[351731338,1738770642465,-500.0,0.00015257,2]
[351731339,1738770642474,-851.47,0.00015257,2]
[351731340,1738770642484,-500.0,0.00015257,2]
[351731341,1738770642494,-500.0,0.00015257,2]
[351731342,1738770642503,-500.0,0.00015257,2]
[351731343,1738770642512,-500.0,0.00015257,2]
[351731344,1738770642522,-500.0,0.00015257,2]
[351731345,1738770642530,-500.0,0.00015257,2]
[351731346,1738770642539,-500.0,0.00015257,2]
[351731347,1738770642548,-500.0,0.00015257,2]
[351731348,1738770642558,-952.12,0.00015257,2]
[351731349,1738770642567,-500.0,0.00015257,2]
[351731350,1738770642577,-501.84635472,0.00015257,2]
[351731351,1738770642586,-500.0,0.00015257,2]
[351731352,1738770642599,-1000.0,0.00015257,2]
[351731353,1738770642610,-500.0,0.00015257,2]
[351731354,1738770642619,-500.0,0.00015257,2]
[351731355,1738770642629,-826.44,0.00015257,2]
[351731356,1738770642638,-500.0,0.00015257,2]
[351731357,1738770642647,-500.0,0.00015257,2]
[351731358,1738770642657,-500.0,0.00015257,2]
[351731359,1738770642667,-500.0,0.00015257,2]
[351731360,1738770642676,-2256.85,0.00015257,2]
[351731361,1738770642684,-188.0,0.00015257,2]
[351731362,1738770642694,-500.0,0.00015257,2]
[351731363,1738770642703,-500.0,0.00015257,2]
[351731364,1738770642712,-500.0,0.00015257,2]
[351731365,1738770642723,-500.0,0.00015257,2]
[351731366,1738770642732,-500.0,0.00015257,2]
[351731367,1738770642742,-500.0,0.00015257,2]
[351731368,1738770642751,-1824.71,0.00015257,2]
[351731369,1738770642761,-501.44963769,0.00015257,2]
[351731370,1738770642771,-905.46,0.00015257,2]
[351731371,1738770642781,-905.46,0.00015257,2]
[351731372,1738770642790,-905.46,0.00015257,2]
[351731373,1738770642799,-500.0,0.00015257,2]
[351731374,1738770642809,-905.46,0.00015257,2]
[351731375,1738770642818,-905.46,0.00015257,2]
[351731376,1738770642830,-905.46,0.00015257,2]
[351731377,1738770642840,-905.46,0.00015257,2]
[351731379,1738770642853,-500.0,0.00015257,2]
[351731381,1738770642862,-905.46,0.00015257,2]
[351731383,1738770642872,-905.46,0.00015257,2]
[351731385,1738770642881,-905.46,0.00015257,2]
[351731386,1738770642890,-905.46,0.00015257,2]
[351731388,1738770642900,-905.51097127,0.00015257,2]
[351731390,1738770642909,-500.0,0.00015257,2]
[351731392,1738770642919,-592.54012417,0.00015257,2]
[351731394,1738770642929,-500.0,0.00015257,2]
[351731396,1738770642939,-500.0,0.00015257,2]
[351731399,1738770642950,-500.0,0.00015257,2]
[351731401,1738770642959,-500.0,0.00015257,2]
[351731402,1738770642969,-500.0,0.00015257,2]
[351731404,1738770642979,-500.0,0.00015257,2]
[351731406,1738770642988,-649.27,0.00015257,2]
[351731408,1738770642999,-500.0,0.00015257,2]
[351731410,1738770643011,-500.0,0.00015257,2]
[351731412,1738770643020,-500.0,0.00015257,2]
[351731414,1738770643030,-500.0,0.00015257,2]
[351731416,1738770643041,-800.0,0.00015257,2]
[351731418,1738770643052,-1043.29,0.00015257,2]
[351731422,1738770643063,-500.0,0.00015257,2]
[351731426,1738770643073,-500.0,0.00015257,2]
[351731429,1738770643086,-500.22088784,0.00015257,2]
[351731434,1738770643099,-500.0,0.00015257,2]
[351731437,1738770643108,-548.28,0.00015257,2]
[351731441,1738770643117,-1015.82,0.00015257,2]
[351731445,1738770643126,-300.0,0.00015257,2]
[351731448,1738770643135,-500.0,0.00015257,2]
[351731452,1738770643144,-500.0,0.00015257,2]
[351731456,1738770643153,-500.0,0.00015257,2]
[351731460,1738770643163,-510.38444078,0.00015257,2]
[351731463,1738770643173,-500.0,0.00015257,2]
[351731466,1738770643182,-542.65,0.00015257,2]
[351731469,1738770643191,-500.0,0.00015257,2]
[351731471,1738770643200,-1065.07,0.00015257,2]
[351731474,1738770643210,-1241.79,0.00015257,2]
[351731476,1738770643220,-500.0,0.00015257,2]
[351731479,1738770643229,-500.0,0.00015257,2]
[351731482,1738770643239,-500.0,0.00015257,2]
[351731485,1738770643249,-500.0,0.00015257,2]
[351731487,1738770643259,-500.0,0.00015257,2]
[351731489,1738770643269,-500.0,0.00015257,2]
[351731491,1738770643279,-500.0,0.00015257,2]
[351731493,1738770643288,-500.0,0.00015257,2]
[351731496,1738770643298,-500.0,0.00015257,2]
[351731498,1738770643307,-3865.95,0.00015257,2]
[351731500,1738770643317,-500.0,0.00015257,2]
[351731502,1738770643327,-500.0,0.00015257,2]
[351731504,1738770643336,-500.0,0.00015257,2]
[351731506,1738770643346,-500.0,0.00015257,2]
[351731508,1738770643356,-500.0,0.00015257,2]
[351731510,1738770643365,-500.0,0.00015257,2]
[351731512,1738770643375,-500.0,0.00015257,2]
[351731514,1738770643384,-500.0,0.00015257,2]
[351731516,1738770643393,-500.0,0.00015257,2]
[351731518,1738770643403,-500.0,0.00015257,2]
[351731520,1738770643412,-500.0,0.00015257,2]
[351731522,1738770643421,-500.0,0.00015257,2]
[351731524,1738770643430,-549.77759903,0.00015257,2]
[351731526,1738770643439,-591.83994075,0.00015257,2]
[351731528,1738770643449,-767.8,0.00015257,2]
[351731530,1738770643458,-500.0,0.00015257,2]
[351731532,1738770643467,-553.8,0.00015257,2]
[351731535,1738770643477,-500.0,0.00015257,2]
[351731538,1738770643486,-500.0,0.00015257,2]
[351731540,1738770643496,-500.0,0.00015257,2]
[351731543,1738770643505,-500.0,0.00015257,2]
[351731546,1738770643515,-753.22,0.00015257,2]
[351731549,1738770643524,-513.03769392,0.00015257,2]
[351731552,1738770643534,-500.0,0.00015257,2]
[351731555,1738770643543,-500.0,0.00015257,2]
[351731558,1738770643552,-500.0,0.00015257,2]
[351731561,1738770643562,-500.0,0.00015257,2]
[351731564,1738770643571,-500.0,0.00015257,2]
[351731567,1738770643581,-500.0,0.00015257,2]
[351731570,1738770643590,-827.02,0.00015257,2]
[351731573,1738770643602,-340.1928242,0.00015257,2]
[351731576,1738770643612,-500.0,0.00015257,2]
[351731579,1738770643622,-500.0,0.00015257,2]
[351731582,1738770643631,-500.0,0.00015257,2]
[351731585,1738770643640,-1900.7,0.00015257,2]
[351731587,1738770643650,-1809.65,0.00015257,2]
[351731591,1738770643659,-500.0,0.00015257,2]
[351731593,1738770643669,-1127.0,0.00015257,2]
[351731596,1738770643678,-500.0,0.00015257,2]
[351731599,1738770643688,-646.14,0.00015257,2]
[351731602,1738770643698,-500.0,0.00015257,2]
[351731605,1738770643708,-500.0,0.00015257,2]
[351731607,1738770643718,-701.06,0.00015257,2]
[351731609,1738770643727,-1020.8,0.00015257,2]
[351731611,1738770643736,-500.0,0.00015257,2]
[351731613,1738770643746,-1049.57,0.00015257,2]
[351731615,1738770643755,-500.0,0.00015257,2]
[351731617,1738770643765,-500.0,0.00015257,2]
[351731619,1738770643775,-500.0,0.00015257,2]
[351731621,1738770643784,-1217.32,0.00015257,2]
[351731623,1738770643794,-744.61,0.00015257,2]
[351731625,1738770643803,-1334.15,0.00015257,2]
[351731627,1738770643814,-1000.0,0.00015257,2]
[351731629,1738770643823,-500.0,0.00015257,2]
[351731631,1738770643833,-514.99960741,0.00015257,2]
[351731633,1738770643842,-500.0,0.00015257,2]
[351731635,1738770643853,-35055.38,0.00015257,2]
[351731637,1738770643862,-500.0,0.00015257,2]
[351731639,1738770643871,-501.22673616,0.00015257,2]
[351731641,1738770643880,-500.0,0.00015257,2]
[351731643,1738770643890,-500.0,0.00015257,2]
[351731645,1738770643899,-1210.39,0.00015257,2]
[351731648,1738770643909,-500.0,0.00015257,2]
[351731651,1738770643918,-935.61,0.00015257,2]
[351731653,1738770643928,-500.0,0.00015257,2]
[351731656,1738770643937,-2991.92,0.00015257,2]
[351731659,1738770643947,-405.8795387,0.00015257,2]
[351731662,1738770643957,-500.0,0.00015257,2]
[351731665,1738770643967,-500.0,0.00015257,2]
[351731668,1738770643977,-500.0,0.00015257,2]
[351731671,1738770643986,-500.0,0.00015257,2]
[351731673,1738770643995,-500.0,0.00015257,2]
[351731676,1738770644009,-500.0,0.00015257,2]
[351731679,1738770644018,-500.0,0.00015257,2]
[351731682,1738770644028,-500.0,0.00015257,2]
[351731685,1738770644037,-500.0,0.00015257,2]
[351731688,1738770644048,-500.0,0.00015257,2]
[351731691,1738770644058,-505.44800151,0.00015257,2]
[351731694,1738770644068,-500.0,0.00015257,2]
[351731697,1738770644077,-500.0,0.00015257,2]
[351731699,1738770644087,-500.0,0.00015257,2]
[351731701,1738770644098,-500.0,0.00015257,2]
[351731703,1738770644107,-1062.49,0.00015257,2]
[351731705,1738770644118,-500.0,0.00015257,2]
[351731707,1738770644128,-500.0,0.00015257,2]
[351731709,1738770644138,-500.0,0.00015257,2]
[351731711,1738770644148,-500.0,0.00015257,2]
[351731713,1738770644158,-1128.16,0.00015257,2]
[351731715,1738770644167,-500.0,0.00015257,2]
[351731717,1738770644177,-500.0,0.00015257,2]
[351731719,1738770644187,-500.0,0.00015257,2]
[351731721,1738770644197,-500.0,0.00015257,2]
[351731723,1738770644207,-500.0,0.00015257,2]
[351731725,1738770644217,-500.0,0.00015257,2]
[351731727,1738770644227,-500.0,0.00015257,2]
[351731729,1738770644237,-500.0,0.00015257,2]
[351731731,1738770644246,-500.0,0.00015257,2]
[351731733,1738770644256,-438.22386094,0.00015257,2]
[351731735,1738770644266,-500.0,0.00015257,2]
[351731737,1738770644276,-500.0,0.00015257,2]
[351731739,1738770644286,-500.0,0.00015257,2]
[351731741,1738770644296,-500.0,0.00015257,2]
[351731743,1738770644305,-500.0,0.00015257,2]
[351731745,1738770644315,-500.0,0.00015257,2]
[351731747,1738770644326,-1093.19,0.00015257,2]
[351731749,1738770644336,-1442.66,0.00015257,2]
[351731751,1738770644345,-500.0,0.00015257,2]
[351731753,1738770644357,-500.0,0.00015257,2]
[351731755,1738770644366,-500.0,0.00015257,2]
[351731757,1738770644375,-507.95164527,0.00015257,2]
[351731759,1738770644385,-500.0,0.00015257,2]
[351731761,1738770644394,-500.0,0.00015257,2]
[351731763,1738770644403,-500.0,0.00015257,2]
[351731765,1738770644413,-500.0,0.00015257,2]
[351731767,1738770644423,-500.0,0.00015257,2]
[351731769,1738770644433,-500.0,0.00015257,2]
[351731771,1738770644442,-502.94517475,0.00015257,2]
[351731773,1738770644451,-500.0,0.00015257,2]
[351731775,1738770644460,-211.74345682,0.00015257,2]
[351731777,1738770644470,-571.8211526,0.00015257,2]
[351731779,1738770644480,-503.79388325,0.00015257,2]
[351731781,1738770644489,-321.82871719,0.00015257,2]
[351731783,1738770644499,-500.0,0.00015257,2]
[351731785,1738770644508,-795.11,0.00015257,2]
[351731787,1738770644517,-512.03,0.00015257,2]
[351731789,1738770644527,-500.0,0.00015257,2]
[351731804,1738770644660,-500.0,0.00015257,2]
[351731806,1738770644671,-500.0,0.00015257,2]
[351731808,1738770644681,-500.0,0.00015257,2]
[351731810,1738770644690,-1036.17,0.00015257,2]
[351731812,1738770644700,-500.0,0.00015257,2]
[351731814,1738770644708,-500.0,0.00015257,2]
[351731816,1738770644717,-500.0,0.00015257,2]
[351731818,1738770644727,-540.91309947,0.00015257,2]
[351731820,1738770644736,-500.0,0.00015257,2]
[351731822,1738770644745,-642.07,0.00015257,2]
[351731824,1738770644754,-500.73042443,0.00015257,2]
[351731826,1738770644765,-539.06959581,0.00015259,2]
[351731828,1738770644774,-500.0,0.00015259,2]
[351731830,1738770644784,-501.39812152,0.00015259,2]
[351731832,1738770644793,-500.0,0.00015259,2]
[351731834,1738770644802,-427.20471527,0.00015259,2]
[351731836,1738770644811,-500.0,0.00015259,2]
[351731838,1738770644820,-500.0,0.00015259,2]
[351731840,1738770644829,-181.46615783,0.00015259,2]
[351731842,1738770644839,-500.0,0.00015259,2]
[351731844,1738770644848,-500.0,0.00015259,2]
[351731846,1738770644858,-500.0,0.00015259,2]
[351731848,1738770644867,-500.0,0.00015259,2]
[351731850,1738770644877,-515.09877908,0.00015259,2]
[351731852,1738770644886,-500.0,0.00015259,2]
[351731854,1738770644896,-500.0,0.00015259,2]
[351731856,1738770644905,-1906.46,0.00015259,2]
[351731858,1738770644914,-572.43,0.00015259,2]
[351731860,1738770644923,-500.0,0.00015259,2]
[351731862,1738770644933,-500.0,0.00015259,2]
[351731864,1738770644942,-574.45,0.00015259,2]
[351731866,1738770644951,-838.29,0.00015259,2]
[351731868,1738770644961,-500.0,0.00015259,2]
[351731870,1738770644971,-3765.17,0.00015259,2]
[351731872,1738770644981,-1254.43,0.00015259,2]
[351731874,1738770644991,-500.0,0.0001526,2]
[351731877,1738770645002,-500.0,0.0001526,2]
[351731878,1738770645012,-500.0,0.0001526,2]
[351731881,1738770645022,-500.0,0.0001526,2]
[351731882,1738770645032,-500.0,0.0001526,2]
[351731885,1738770645042,-506.14144107,0.0001526,2]
[351731887,1738770645053,-500.0,0.0001526,2]
[351731889,1738770645063,-500.0,0.0001526,2]
[351731891,1738770645073,-151.0,0.0001526,2]
[351731893,1738770645084,-151.0,0.0001526,2]
[351731895,1738770645094,-151.0,0.0001526,2]
[351731897,1738770645106,-1264.46733845,0.00015293,2]
[351731899,1738770645115,-1264.46733845,0.00015293,2]
[351731901,1738770645126,-1264.46733845,0.00015293,2]
[351731903,1738770645135,-1264.46733845,0.00015293,2]
[351731905,1738770645144,-1264.46733845,0.00015293,2]
[351731907,1738770645154,-1264.46733845,0.00015293,2]
[351731909,1738770645164,-1264.46733845,0.00015293,2]
[351731911,1738770645174,-1264.46733845,0.00015293,2]
[351731913,1738770645185,-1264.46733845,0.00015293,2]
[351731915,1738770645194,-1264.46733845,0.00015293,2]
[351731917,1738770645205,-1264.46733845,0.00015293,2]
[351731919,1738770645214,-1264.46733845,0.00015293,2]
[351731921,1738770645224,-1264.46733845,0.00015293,2]
[351731923,1738770645234,-1264.46733845,0.00015293,2]
[351731925,1738770645244,-1264.46733845,0.00015293,2]
[351731927,1738770645254,-1264.46733845,0.00015293,2]
[351731929,1738770645264,-1264.46733845,0.00015293,2]
[351731931,1738770645274,-1264.46733845,0.00015293,2]
[351731933,1738770645284,-1264.46733845,0.00015293,2]
[351731935,1738770645293,-1264.46,0.00015293,2]
[351731937,1738770645303,-184.57,0.00015293,2]
[351731939,1738770645313,-1090.76906547,0.00015294,2]
[351731941,1738770645322,-5017.0,0.000153,2]
[351731943,1738770645331,-2950.42378971,0.000153,2]
[351731945,1738770645341,-2950.42378971,0.000153,2]
[351731947,1738770645350,-2950.42378971,0.000153,2]
[351731949,1738770645360,-2950.42378971,0.000153,2]
[351731951,1738770645369,-2950.42378971,0.000153,2]
[351731953,1738770645378,-2950.42378971,0.000153,2]
[351731955,1738770645387,-2950.42378971,0.000153,2]
[351731957,1738770645396,-2950.42378971,0.000153,2]
[351731959,1738770645406,-2950.42378971,0.000153,2]
[351731961,1738770645415,-2950.42378971,0.000153,2]
[351731963,1738770645424,-2950.42378971,0.000153,2]
[351731965,1738770645433,-2950.42378971,0.000153,2]
[351731967,1738770645442,-2950.42378971,0.000153,2]
[351731969,1738770645452,-2950.42378971,0.000153,2]
[351731971,1738770645461,-2950.42378971,0.000153,2]
[351731973,1738770645471,-2950.42378971,0.000153,2]
[351731975,1738770645480,-2950.42378971,0.000153,2]
[351731977,1738770645490,-2950.42378971,0.000153,2]
[351731979,1738770645499,-2950.42378971,0.000153,2]
[351731981,1738770645508,-2950.42,0.000153,2]
[351731983,1738770645518,-215.3336331,0.000153,2]
[351731985,1738770645527,-215.33,0.000153,2]
[351731987,1738770645536,-11497.1064992,0.00015334,2]
[351731989,1738770645546,-151.0,0.00015334,2]
[351731991,1738770645558,-154.34614,0.0001536,2]
[351731993,1738770645568,-151.0,0.0001536,2]
[351731995,1738770645577,-500.0,0.00015373,2]
[351731997,1738770645587,-500.0,0.00015373,2]
[351731999,1738770645596,-500.0,0.0001539,2]
[351732001,1738770645607,-5348.43,0.0001539,2]
[351732003,1738770645616,-1353.84,0.0001539,2]
[351732005,1738770645625,-2184.79,0.0001539,2]
[351732007,1738770645636,-1132.51,0.0001539,2]
[351732009,1738770645645,-500.0,0.0001539,2]
[351732011,1738770645654,-3304.82,0.0001539,2]
[351732013,1738770645663,-557.46,0.0001539,2]
[351732015,1738770645673,-800.81,0.00015391,2]
[351732017,1738770645682,-500.0,0.00015391,2]
[351732019,1738770645691,-500.0,0.00015391,2]
[351732021,1738770645700,-500.0,0.00015391,2]
[351732023,1738770645710,-500.0,0.00015391,2]
[351732025,1738770645719,-500.0,0.00015391,2]
[351732027,1738770645728,-500.0,0.00015391,2]
[351732029,1738770645738,-500.0,0.00015391,2]
[351732031,1738770645748,-500.0,0.00015391,2]
[351732033,1738770645758,-500.0,0.00015391,2]
[351732035,1738770645768,-500.0,0.00015391,2]
[351732037,1738770645777,-500.0,0.00015391,2]
[351732039,1738770645788,-500.0,0.00015391,2]
[351732041,1738770645797,-567.6,0.00015391,2]
[351732044,1738770645806,-722.44,0.00015391,2]
[351732046,1738770645816,-500.0,0.00015391,2]
[351732047,1738770645826,-500.0,0.00015391,2]
[351732049,1738770645836,-500.0,0.00015391,2]
[351732052,1738770645846,-500.0,0.00015391,2]
[351732054,1738770645856,-500.0,0.00015391,2]
[351732056,1738770645866,-500.0,0.00015391,2]
[351732060,1738770645876,-767.59,0.00015391,2]
[351732063,1738770645886,-500.0,0.00015391,2]
[351732065,1738770645896,-500.0,0.00015391,2]
[351732069,1738770645907,-500.0,0.00015391,2]
[351732072,1738770645916,-500.0,0.00015391,2]
[351732075,1738770645925,-500.0,0.00015391,2]
[351732078,1738770645935,-500.0,0.00015391,2]
[351732081,1738770645945,-500.0,0.00015391,2]